[Event "Open NK Rapid 2025"]
[Site "Helmond, Netherlands"]
[Date "2025.05.03"]
[Round "4.14"]
[White "Cernov, Henrik"]
[Black "Darie, Aden"]
[Result "1/2-1/2"]
[TimeControl "15+5"]
[WhiteFideId "16258312"]
[BlackFideId "1094831"]
[WhiteElo "2291"]
[BlackElo "1941"]

1. e4 {[%clk 00:15:09]} {[%emt 00:00:01]} c6 {[%clk 00:14:50]} {[%emt
00:00:20]} 2. d4 {[%clk 00:15:10]} {[%emt 00:00:04]} d5 {[%clk 00:14:53]}
{[%emt 00:00:02]} 3. e5 {[%clk 00:15:14]} {[%emt 00:00:01]} c5 {[%clk
00:14:55]} {[%emt 00:00:03]} 4. c4 {[%clk 00:15:18]} {[%emt 00:00:01]} e6
{[%clk 00:14:57]} {[%emt 00:00:03]} 5. Nf3 {[%clk 00:15:18]} {[%emt 00:00:05]}
cxd4 {[%clk 00:14:59]} {[%emt 00:00:03]} 6. Nxd4 {[%clk 00:15:21]} {[%emt
00:00:01]} Nc6 {[%clk 00:15:03]} {[%emt 00:00:02]} 7. Nc3 {[%clk 00:15:23]}
{[%emt 00:00:04]} Bc5 {[%clk 00:15:06]} {[%emt 00:00:02]} 8. Nxc6 {[%clk
00:15:13]} {[%emt 00:00:15]} bxc6 {[%clk 00:15:09]} 9. Qg4 {[%clk 00:15:16]}
{[%emt 00:00:02]} Ne7 {[%clk 00:15:13]} 10. Qxg7 {[%clk 00:15:11]} {[%emt
00:00:10]} Ng6 {[%clk 00:14:55]} {[%emt 00:00:23]} 11. Be2 {[%clk 00:14:13]}
{[%emt 00:01:03]} Bf8 {[%clk 00:14:52]} {[%emt 00:00:09]} 12. Qf6 {[%clk
00:14:17]} {[%emt 00:00:01]} Be7 {[%clk 00:14:51]} {[%emt 00:00:05]} 13. Qg7
{[%clk 00:13:59]} {[%emt 00:00:24]} Bf8 {[%clk 00:14:16]} {[%emt 00:00:40]} 14.
Qf6 {[%clk 00:14:02]} Be7 {[%clk 00:13:51]} {[%emt 00:00:30]} 15. Qf3 {[%clk
00:14:07]} Nxe5 {[%clk 00:13:55]} {[%emt 00:00:01]} 16. Qg3 {[%clk 00:13:53]}
{[%emt 00:00:19]} Bd6 {[%clk 00:13:13]} {[%emt 00:00:47]} 17. c5 {[%clk
00:09:28]} {[%emt 00:04:30]} Bc7 {[%clk 00:12:25]} {[%emt 00:00:52]} 18. Bf4
{[%clk 00:09:13]} {[%emt 00:00:21]} Qf6 {[%clk 00:12:23]} {[%emt 00:00:06]} 19.
Bg5 {[%clk 00:07:47]} {[%emt 00:01:31]} Qg6 {[%clk 00:11:33]} {[%emt 00:00:56]}
20. Qh4 {[%clk 00:05:05]} {[%emt 00:02:47]} Rg8 {[%clk 00:10:44]} {[%emt
00:00:54]} 21. Be3 {[%clk 00:04:23]} {[%emt 00:00:47]} Nd3+ {[%clk 00:10:00]}
{[%emt 00:00:48]} 22. Bxd3 {[%clk 00:04:24]} {[%emt 00:00:04]} Qxd3 {[%clk
00:10:03]} {[%emt 00:00:02]} 23. Rd1 {[%clk 00:04:13]} {[%emt 00:00:16]} Qg6
{[%clk 00:10:02]} {[%emt 00:00:05]} 24. g3 {[%clk 00:04:12]} {[%emt 00:00:07]}
Ba6 {[%clk 00:09:54]} {[%emt 00:00:13]} 25. Qa4 {[%clk 00:04:07]} {[%emt
00:00:11]} Bb7 {[%clk 00:09:30]} {[%emt 00:00:29]} 26. O-O {[%clk 00:03:59]}
{[%emt 00:00:13]} h5 {[%clk 00:09:19]} {[%emt 00:00:15]} 27. Ne2 {[%clk
00:04:04]} h4 {[%clk 00:09:07]} {[%emt 00:00:16]} 28. Qxh4 {[%clk 00:03:45]}
{[%emt 00:00:24]} Ba6 {[%clk 00:08:04]} {[%emt 00:01:08]} 29. Rfe1 {[%clk
00:03:35]} {[%emt 00:00:15]} Bd3 {[%clk 00:06:42]} {[%emt 00:01:27]} 30. Nf4
{[%clk 00:03:24]} {[%emt 00:00:16]} Bxf4 {[%clk 00:06:45]} {[%emt 00:00:02]} 31.
Qxf4 {[%clk 00:03:28]} {[%emt 00:00:01]} Be4 {[%clk 00:06:42]} {[%emt
00:00:08]} 32. f3 {[%clk 00:03:22]} {[%emt 00:00:11]} Bf5 {[%clk 00:06:26]}
{[%emt 00:00:21]} 33. Qh6 {[%clk 00:02:38]} {[%emt 00:00:49]} Qxh6 {[%clk
00:06:00]} {[%emt 00:00:32]} 34. Bxh6 {[%clk 00:02:42]} Rb8 {[%clk 00:05:55]}
{[%emt 00:00:10]} 35. b3 {[%clk 00:02:46]} Rb4 {[%clk 00:05:43]} {[%emt
00:00:18]} 36. Bd2 {[%clk 00:02:30]} {[%emt 00:00:21]} Rd4 {[%clk 00:05:33]}
{[%emt 00:00:15]} 37. Bc3 {[%clk 00:02:24]} {[%emt 00:00:11]} Rxd1 {[%clk
00:05:29]} {[%emt 00:00:09]} 38. Rxd1 {[%clk 00:02:29]} Bh3 {[%clk 00:05:23]}
{[%emt 00:00:11]} 39. Kf2 {[%clk 00:02:20]} {[%emt 00:00:14]} Kd7 {[%clk
00:05:23]} {[%emt 00:00:05]} 40. g4 {[%clk 00:02:11]} {[%emt 00:00:14]} f5
{[%clk 00:05:26]} {[%emt 00:00:02]} 41. Kg3 {[%clk 00:01:42]} {[%emt 00:00:33]}
fxg4 {[%clk 00:05:29]} {[%emt 00:00:03]} 42. f4 {[%clk 00:01:47]} Rb8 {[%clk
00:04:57]} {[%emt 00:00:36]} 43. Re1 {[%clk 00:01:47]} {[%emt 00:00:06]} Rb5
{[%clk 00:04:50]} {[%emt 00:00:12]} 44. b4 {[%clk 00:01:47]} {[%emt 00:00:05]}
Rb8 {[%clk 00:04:53]} {[%emt 00:00:01]} 45. Re5 {[%clk 00:01:39]} {[%emt
00:00:13]} Rf8 {[%clk 00:04:55]} {[%emt 00:00:03]} 46. Rg5 {[%clk 00:01:34]}
{[%emt 00:00:11]} Ke7 {[%clk 00:04:42]} {[%emt 00:00:18]} 47. Be5 {[%clk
00:01:25]} {[%emt 00:00:14]} Rd8 {[%clk 00:04:04]} {[%emt 00:00:41]} 48. Bd4
{[%clk 00:01:14]} {[%emt 00:00:17]} Rf8 {[%clk 00:04:04]} {[%emt 00:00:04]} 49.
a3 {[%clk 00:01:08]} {[%emt 00:00:13]} a6 {[%clk 00:03:55]} {[%emt 00:00:14]}
50. Rh5 {[%clk 00:01:04]} {[%emt 00:00:08]} Rf7 {[%clk 00:03:49]} {[%emt
00:00:10]} 51. Be5 {[%clk 00:01:05]} {[%emt 00:00:05]} Kd7 {[%clk 00:03:48]}
{[%emt 00:00:06]} 52. Rh8 {[%clk 00:01:07]} {[%emt 00:00:03]} Re7 {[%clk
00:02:51]} {[%emt 00:01:02]} 53. Ra8 {[%clk 00:01:08]} {[%emt 00:00:04]} Bf1
{[%clk 00:02:55]} 54. Kxg4 {[%clk 00:00:49]} {[%emt 00:00:24]} Bd3 {[%clk
00:02:42]} {[%emt 00:00:18]} 55. Kg5 {[%clk 00:00:44]} {[%emt 00:00:10]} Rf7
{[%clk 00:02:30]} {[%emt 00:00:16]} 56. Ra7+ {[%clk 00:00:30]} {[%emt
00:00:20]} Ke8 {[%clk 00:02:34]} {[%emt 00:00:01]} 57. Rxf7 {[%clk 00:00:24]}
{[%emt 00:00:11]} Kxf7 {[%clk 00:02:38]} {[%emt 00:00:02]} 58. h4 {[%clk
00:00:23]} {[%emt 00:00:05]} Bc2 {[%clk 00:02:25]} {[%emt 00:00:18]} 59. h5
{[%clk 00:00:24]} {[%emt 00:00:04]} Ke7 {[%clk 00:02:20]} {[%emt 00:00:10]} 60.
h6 {[%clk 00:00:12]} {[%emt 00:00:17]} Kf7 {[%clk 00:02:25]} 61. Bd4 {[%clk
00:00:14]} {[%emt 00:00:03]} Ke7 {[%clk 00:02:16]} {[%emt 00:00:14]} 62. a4
{[%clk 00:00:09]} {[%emt 00:00:10]} Kf7 {[%clk 00:02:08]} {[%emt 00:00:11]} 63.
Be5 {[%clk 00:00:09]} {[%emt 00:00:07]} Ke7 {[%clk 00:02:04]} {[%emt 00:00:09]}
64. Bd6+ {[%clk 00:00:08]} {[%emt 00:00:06]} Kf7 {[%clk 00:02:05]} {[%emt
00:00:03]} 65. b5 {[%emt 00:00:22]} cxb5 {[%emt 00:00:06]} 66. axb5 {[%clk
00:00:08]} {[%emt 00:00:04]} axb5 {[%clk 00:01:51]} {[%emt 00:00:02]} 67. c6
{[%clk 00:00:11]} {[%emt 00:00:03]} Ke8 {[%clk 00:01:52]} {[%emt 00:00:04]} 68.
Kf6 {[%clk 00:00:13]} {[%emt 00:00:03]} Bf5 {[%clk 00:01:15]} {[%emt 00:00:42]}
69. Bc5 {[%clk 00:00:09]} {[%emt 00:00:08]} Kd8 {[%clk 00:01:15]} {[%emt
00:00:06]} 70. Bd6 {[%clk 00:00:11]} {[%emt 00:00:03]} b4 {[%clk 00:01:08]}
{[%emt 00:00:12]} 71. Bxb4 {[%clk 00:00:15]} {[%emt 00:00:01]} Kc7 {[%clk
00:01:13]} 72. Bc3 {[%clk 00:00:10]} {[%emt 00:00:09]} Kxc6 {[%clk 00:01:12]}
{[%emt 00:00:06]} 73. Bd4 {[%emt 00:00:10]} Kb5 {[%clk 00:01:10]} {[%emt
00:00:06]} 74. h7 {[%clk 00:00:08]} {[%emt 00:00:03]} Bxh7 {[%clk 00:01:14]}
{[%emt 00:00:01]} 75. Kxe6 {[%emt 00:00:02]} Be4 {[%clk 00:01:17]} {[%emt
00:00:01]} 1/2-1/2

[Event "Open NK Rapid 2025"]
[Site "Helmond, Netherlands"]
[Date "2025.05.03"]
[Round "4.15"]
[White "Beeke, Bob"]
[Black "Moskalets, Sofiia"]
[Result "1-0"]
[TimeControl "15+5"]
[WhiteFideId "1011634"]
[BlackFideId "34144293"]
[WhiteElo "2217"]
[BlackElo "1938"]

1. d4 {[%clk 00:14:09]} {[%emt 00:01:01]} d5 {[%clk 00:15:09]} {[%emt
00:00:03]} 2. c4 {[%clk 00:14:13]} e6 {[%clk 00:15:13]} {[%emt 00:00:01]} 3.
Nc3 {[%clk 00:14:17]} {[%emt 00:00:01]} c5 {[%clk 00:15:17]} 4. cxd5 {[%clk
00:14:18]} {[%emt 00:00:05]} exd5 {[%clk 00:15:21]} {[%emt 00:00:01]} 5. Nf3
{[%clk 00:14:22]} {[%emt 00:00:01]} Nc6 {[%clk 00:15:24]} 6. g3 {[%clk
00:14:23]} {[%emt 00:00:03]} Nf6 {[%clk 00:15:28]} {[%emt 00:00:02]} 7. Bg2
{[%clk 00:14:27]} cxd4 {[%clk 00:15:32]} {[%emt 00:00:01]} 8. Nxd4 {[%clk
00:14:31]} {[%emt 00:00:02]} Bc5 {[%clk 00:15:35]} 9. Nb3 {[%clk 00:14:25]}
{[%emt 00:00:11]} Bb6 {[%clk 00:15:39]} {[%emt 00:00:01]} 10. Bg5 {[%clk
00:14:22]} {[%emt 00:00:08]} Be6 {[%clk 00:15:17]} {[%emt 00:00:26]} 11. O-O
{[%clk 00:14:23]} {[%emt 00:00:04]} O-O {[%clk 00:15:15]} {[%emt 00:00:07]} 12.
Na4 {[%clk 00:14:16]} {[%emt 00:00:13]} h6 {[%clk 00:14:03]} {[%emt 00:01:17]}
13. Nxb6 {[%clk 00:14:11]} {[%emt 00:00:10]} axb6 {[%clk 00:14:04]} {[%emt
00:00:04]} 14. Be3 {[%clk 00:14:02]} {[%emt 00:00:14]} Ne4 {[%clk 00:12:41]}
{[%emt 00:01:28]} 15. Nd4 {[%clk 00:13:43]} {[%emt 00:00:23]} Qf6 {[%clk
00:10:49]} {[%emt 00:01:57]} 16. a3 {[%clk 00:12:43]} {[%emt 00:01:06]} Rac8
{[%clk 00:09:55]} {[%emt 00:00:59]} 17. Rc1 {[%clk 00:12:08]} {[%emt 00:00:40]}
Ne5 {[%clk 00:09:30]} {[%emt 00:00:30]} 18. f3 {[%clk 00:10:45]} {[%emt
00:01:28]} Nc5 {[%clk 00:08:01]} {[%emt 00:01:34]} 19. Nb5 {[%emt 00:02:53]}
Nc4 {[%clk 00:06:43]} 20. Bd4 {[%clk 00:09:14]} {[%emt 00:00:11]} Qe7 {[%clk
00:06:02]} {[%emt 00:00:46]} 21. b3 {[%clk 00:08:15]} {[%emt 00:01:04]} Nd6
{[%clk 00:06:02]} {[%emt 00:00:05]} 22. Nxd6 {[%clk 00:08:14]} {[%emt
00:00:06]} Qxd6 {[%clk 00:06:06]} {[%emt 00:00:01]} 23. b4 {[%clk 00:08:07]}
{[%emt 00:00:13]} Nd7 {[%clk 00:06:06]} {[%emt 00:00:05]} 24. Qd3 {[%clk
00:07:57]} {[%emt 00:00:14]} Rc4 {[%clk 00:05:34]} {[%emt 00:00:37]} 25. Rc3
{[%clk 00:07:15]} {[%emt 00:00:46]} Rfc8 {[%clk 00:04:34]} {[%emt 00:01:06]} 26.
Rfc1 {[%clk 00:07:19]} {[%emt 00:00:01]} b5 {[%clk 00:03:57]} {[%emt 00:00:42]}
27. f4 {[%clk 00:06:34]} {[%emt 00:00:49]} g6 {[%clk 00:03:36]} {[%emt
00:00:27]} 28. Bf3 {[%clk 00:05:46]} {[%emt 00:00:54]} Bf5 {[%clk 00:03:26]}
{[%emt 00:00:14]} 29. Qe3 {[%clk 00:05:23]} {[%emt 00:00:28]} Kf8 {[%clk
00:01:30]} {[%emt 00:02:01]} 30. g4 {[%clk 00:04:35]} {[%emt 00:00:53]} Re8
{[%clk 00:01:23]} {[%emt 00:00:12]} 31. Bg7+ {[%clk 00:04:07]} {[%emt
00:00:33]} Kxg7 {[%clk 00:01:23]} {[%emt 00:00:05]} 32. Qxe8 {[%clk 00:04:11]}
Be6 {[%clk 00:00:55]} {[%emt 00:00:34]} 33. Rxc4 {[%clk 00:03:08]} {[%emt
00:01:09]} dxc4 {[%clk 00:00:54]} {[%emt 00:00:06]} 34. f5 {[%clk 00:03:01]}
{[%emt 00:00:11]} Qd4+ {[%clk 00:00:35]} {[%emt 00:00:24]} 35. Kh1 {[%clk
00:02:19]} {[%emt 00:00:46]} Nf6 {[%clk 00:00:28]} {[%emt 00:00:13]} 36. Qxb5
{[%clk 00:02:14]} {[%emt 00:00:10]} Bd5 {[%clk 00:00:11]} {[%emt 00:00:22]} 37.
Bxd5 {[%clk 00:01:42]} {[%emt 00:00:37]} Nxd5 {[%clk 00:00:14]} {[%emt
00:00:02]} 38. Qxc4 {[%clk 00:01:46]} {[%emt 00:00:01]} Qe3 {[%clk 00:00:11]}
{[%emt 00:00:09]} 39. Rf1 {[%clk 00:01:38]} {[%emt 00:00:12]} Nb6 {[%clk
00:00:12]} {[%emt 00:00:05]} 40. Qd3 {[%clk 00:01:33]} {[%emt 00:00:09]} Qe5
{[%clk 00:00:10]} {[%emt 00:00:07]} 41. fxg6 {[%clk 00:01:34]} {[%emt
00:00:04]} fxg6 {[%clk 00:00:13]} {[%emt 00:00:02]} 42. e3 {[%clk 00:01:35]}
{[%emt 00:00:05]} Qe6 {[%clk 00:00:13]} {[%emt 00:00:05]} 43. Qd4+ {[%clk
00:01:37]} {[%emt 00:00:03]} Kh7 {[%clk 00:00:14]} {[%emt 00:00:04]} 44. Rf6
{[%clk 00:01:21]} {[%emt 00:00:21]} 1-0

[Event "Open NK Rapid 2025"]
[Site "Helmond, Netherlands"]
[Date "2025.05.03"]
[Round "4.16"]
[White "Smeets, Kobe"]
[Black "Jansz, Wilfred"]
[Result "1-0"]
[TimeControl "15+5"]
[WhiteFideId "1063910"]
[BlackFideId "40107353"]
[WhiteElo "2192"]
[BlackElo "1996"]

1. e4 {[%clk 00:15:08]} {[%emt 00:00:01]} c5 {[%clk 00:15:07]} {[%emt
00:00:03]} 2. a3 {[%clk 00:15:06]} {[%emt 00:00:07]} d6 {[%clk 00:15:10]}
{[%emt 00:00:02]} 3. b4 {[%clk 00:15:09]} {[%emt 00:00:02]} b6 {[%clk
00:14:50]} {[%emt 00:00:25]} 4. Bb2 {[%clk 00:14:48]} {[%emt 00:00:26]} Nf6
{[%clk 00:14:41]} {[%emt 00:00:15]} 5. Nc3 {[%clk 00:14:39]} {[%emt 00:00:14]}
Bb7 {[%clk 00:14:25]} {[%emt 00:00:20]} 6. d3 {[%clk 00:14:10]} {[%emt
00:00:34]} e6 {[%clk 00:14:11]} {[%emt 00:00:20]} 7. Nf3 {[%clk 00:13:34]}
{[%emt 00:00:40]} Nbd7 {[%clk 00:14:07]} {[%emt 00:00:09]} 8. g3 {[%clk
00:13:28]} {[%emt 00:00:11]} Be7 {[%clk 00:14:10]} {[%emt 00:00:02]} 9. Bg2
{[%clk 00:13:32]} {[%emt 00:00:01]} O-O {[%clk 00:14:13]} {[%emt 00:00:02]} 10.
O-O {[%clk 00:13:33]} {[%emt 00:00:05]} Qc7 {[%clk 00:13:54]} {[%emt 00:00:23]}
11. Qe2 {[%clk 00:13:21]} {[%emt 00:00:16]} Rfe8 {[%clk 00:13:46]} {[%emt
00:00:14]} 12. b5 {[%clk 00:13:23]} {[%emt 00:00:03]} Bf8 {[%clk 00:12:06]}
{[%emt 00:01:44]} 13. a4 {[%clk 00:13:13]} {[%emt 00:00:16]} g6 {[%clk
00:12:02]} {[%emt 00:00:10]} 14. Nd2 {[%clk 00:12:31]} {[%emt 00:00:45]} Bg7
{[%clk 00:12:02]} {[%emt 00:00:06]} 15. f4 {[%clk 00:12:34]} {[%emt 00:00:03]}
Rad8 {[%clk 00:11:10]} {[%emt 00:00:57]} 16. Rae1 {[%clk 00:12:05]} {[%emt
00:00:33]} Nf8 {[%clk 00:10:36]} {[%emt 00:00:38]} 17. g4 {[%clk 00:11:12]}
{[%emt 00:00:59]} N6d7 {[%clk 00:10:38]} {[%emt 00:00:04]} 18. Nd1 {[%clk
00:10:48]} {[%emt 00:00:29]} e5 {[%clk 00:09:30]} {[%emt 00:01:13]} 19. f5
{[%clk 00:10:42]} {[%emt 00:00:10]} f6 {[%clk 00:09:15]} {[%emt 00:00:21]} 20.
h4 {[%clk 00:10:21]} {[%emt 00:00:25]} Nb8 {[%clk 00:08:21]} {[%emt 00:00:59]}
21. g5 {[%clk 00:10:09]} {[%emt 00:00:16]} gxf5 {[%clk 00:06:45]} {[%emt
00:01:42]} 22. exf5 {[%clk 00:10:03]} {[%emt 00:00:12]} Bxg2 {[%clk 00:06:33]}
{[%emt 00:00:17]} 23. Qxg2 {[%clk 00:10:06]} {[%emt 00:00:02]} Kh8 {[%clk
00:04:50]} {[%emt 00:01:47]} 24. Ne4 {[%clk 00:10:09]} {[%emt 00:00:02]} d5
{[%clk 00:04:28]} {[%emt 00:00:27]} 25. gxf6 {[%clk 00:10:05]} {[%emt
00:00:09]} Bh6 {[%clk 00:04:24]} {[%emt 00:00:10]} 26. Ng5 {[%clk 00:10:00]}
{[%emt 00:00:08]} d4 {[%clk 00:03:48]} {[%emt 00:00:42]} 27. Nf2 {[%clk
00:09:41]} {[%emt 00:00:24]} Bxg5 {[%clk 00:03:14]} {[%emt 00:00:40]} 28. hxg5
{[%clk 00:09:44]} {[%emt 00:00:02]} Qf7 {[%clk 00:03:13]} {[%emt 00:00:05]} 29.
Ng4 {[%clk 00:09:43]} {[%emt 00:00:05]} Nbd7 {[%clk 00:02:46]} {[%emt
00:00:33]} 30. Nh6 {[%clk 00:09:47]} {[%emt 00:00:01]} Qh5 {[%clk 00:02:44]}
{[%emt 00:00:08]} 31. Rf3 {[%clk 00:09:38]} {[%emt 00:00:13]} 1-0

[Event "Open NK Rapid 2025"]
[Site "Helmond, Netherlands"]
[Date "2025.05.03"]
[Round "4.17"]
[White "Madularea, David"]
[Black "Kools, Thomas"]
[Result "1-0"]
[TimeControl "15+5"]
[WhiteFideId "1070215"]
[BlackFideId "1054759"]
[WhiteElo "1921"]
[BlackElo "2094"]

1. e4 {[%clk 00:15:07]} {[%emt 00:00:02]} c5 {[%clk 00:15:09]} 2. Nf3 {[%clk
00:15:11]} {[%emt 00:00:01]} e6 {[%clk 00:15:13]} {[%emt 00:00:01]} 3. d4
{[%clk 00:15:02]} {[%emt 00:00:15]} cxd4 {[%clk 00:15:16]} {[%emt 00:00:01]} 4.
Nxd4 {[%clk 00:15:06]} a6 {[%clk 00:15:20]} {[%emt 00:00:02]} 5. a3 {[%clk
00:15:06]} {[%emt 00:00:05]} Nf6 {[%clk 00:15:17]} {[%emt 00:00:08]} 6. Nc3
{[%clk 00:15:09]} {[%emt 00:00:01]} Qc7 {[%clk 00:15:21]} {[%emt 00:00:02]} 7.
Be3 {[%clk 00:15:03]} {[%emt 00:00:11]} d6 {[%clk 00:15:02]} {[%emt 00:00:24]}
8. g4 {[%clk 00:14:46]} {[%emt 00:00:21]} h5 {[%clk 00:14:38]} {[%emt
00:00:30]} 9. g5 {[%clk 00:14:06]} {[%emt 00:00:45]} Ng4 {[%clk 00:14:42]}
{[%emt 00:00:01]} 10. Bc1 {[%clk 00:14:04]} {[%emt 00:00:05]} Nc6 {[%clk
00:12:59]} {[%emt 00:01:50]} 11. Nxc6 {[%clk 00:12:39]} {[%emt 00:01:29]} bxc6
{[%clk 00:12:23]} {[%emt 00:00:42]} 12. f4 {[%clk 00:12:12]} {[%emt 00:00:31]}
Qb6 {[%clk 00:11:54]} {[%emt 00:00:34]} 13. Qf3 {[%clk 00:10:40]} {[%emt
00:01:38]} d5 {[%clk 00:11:20]} {[%emt 00:00:39]} 14. h3 {[%clk 00:10:39]}
{[%emt 00:00:05]} d4 {[%clk 00:09:47]} {[%emt 00:01:40]} 15. Nd1 {[%clk
00:10:39]} {[%emt 00:00:03]} Ne3 {[%clk 00:09:46]} {[%emt 00:00:06]} 16. Nxe3
{[%clk 00:10:38]} {[%emt 00:00:07]} dxe3 {[%clk 00:09:48]} {[%emt 00:00:02]} 17.
Qxe3 {[%clk 00:10:35]} {[%emt 00:00:08]} Bc5 {[%clk 00:09:51]} {[%emt
00:00:03]} 18. Qf3 {[%clk 00:09:37]} {[%emt 00:01:03]} a5 {[%clk 00:09:23]}
{[%emt 00:00:33]} 19. Rh2 {[%clk 00:08:58]} {[%emt 00:00:44]} O-O {[%clk
00:08:53]} {[%emt 00:00:34]} 20. Qxh5 {[%clk 00:08:47]} {[%emt 00:00:16]} Be3
{[%clk 00:08:45]} {[%emt 00:00:13]} 21. Qf3 {[%clk 00:06:24]} {[%emt 00:02:28]}
Bxc1 {[%clk 00:08:33]} {[%emt 00:00:17]} 22. Rxc1 {[%clk 00:06:27]} {[%emt
00:00:02]} Qxb2 {[%clk 00:08:37]} {[%emt 00:00:02]} 23. Rd1 {[%clk 00:06:16]}
{[%emt 00:00:15]} c5 {[%clk 00:06:58]} {[%emt 00:01:45]} 24. h4 {[%clk
00:05:31]} {[%emt 00:00:49]} Bb7 {[%clk 00:06:37]} {[%emt 00:00:26]} 25. Rhd2
{[%clk 00:04:46]} {[%emt 00:00:51]} Bc6 {[%clk 00:05:21]} {[%emt 00:01:21]} 26.
h5 {[%clk 00:03:54]} {[%emt 00:00:56]} Qb7 {[%clk 00:05:02]} {[%emt 00:00:25]}
27. Bd3 {[%clk 00:03:58]} c4 {[%clk 00:05:01]} {[%emt 00:00:06]} 28. Bxc4
{[%clk 00:04:01]} {[%emt 00:00:02]} Bxe4 {[%clk 00:05:04]} {[%emt 00:00:02]} 29.
Qe3 {[%clk 00:03:08]} {[%emt 00:00:58]} Bf5 {[%clk 00:03:49]} {[%emt 00:01:20]}
30. Kf2 {[%clk 00:02:43]} {[%emt 00:00:29]} Bg4 {[%clk 00:03:14]} {[%emt
00:00:41]} 31. Rg1 {[%clk 00:02:46]} {[%emt 00:00:01]} Bxh5 {[%clk 00:02:49]}
{[%emt 00:00:31]} 32. g6 {[%clk 00:02:39]} {[%emt 00:00:12]} Qe7 {[%clk
00:02:21]} {[%emt 00:00:33]} 33. gxf7+ {[%clk 00:02:09]} {[%emt 00:00:35]} Bxf7
{[%clk 00:02:24]} 34. Qe5 {[%clk 00:01:56]} {[%emt 00:00:19]} Qh4+ {[%clk
00:02:08]} {[%emt 00:00:21]} 35. Kf1 {[%clk 00:01:40]} {[%emt 00:00:19]} Qh3+
{[%clk 00:01:27]} {[%emt 00:00:48]} 36. Ke1 {[%clk 00:01:42]} {[%emt 00:00:02]}
Qh4+ {[%clk 00:01:25]} {[%emt 00:00:08]} 37. Kd1 {[%clk 00:01:21]} {[%emt
00:00:25]} Qh5+ {[%clk 00:01:17]} {[%emt 00:00:14]} 38. Qxh5 {[%clk 00:01:09]}
{[%emt 00:00:16]} Bxh5+ {[%clk 00:01:21]} {[%emt 00:00:02]} 39. Kc1 {[%clk
00:01:13]} {[%emt 00:00:01]} Rxf4 {[%clk 00:01:18]} {[%emt 00:00:08]} 40. Bxe6+
{[%clk 00:01:16]} {[%emt 00:00:02]} Bf7 {[%clk 00:01:22]} 41. Bd7 {[%clk
00:00:40]} {[%emt 00:00:41]} Bc4 {[%clk 00:00:56]} {[%emt 00:00:31]} 42. Kb2
{[%clk 00:00:25]} {[%emt 00:00:20]} Kf7 {[%clk 00:00:23]} {[%emt 00:00:38]} 43.
Rdg2 {[%clk 00:00:21]} {[%emt 00:00:08]} g5 {[%clk 00:00:13]} {[%emt 00:00:15]}
44. Rxg5 {[%clk 00:00:22]} {[%emt 00:00:05]} Rf2 {[%clk 00:00:16]} {[%emt
00:00:02]} 45. Rg7+ {[%clk 00:00:23]} {[%emt 00:00:04]} Kf6 {[%clk 00:00:18]}
{[%emt 00:00:03]} 46. R1g6+ {[%clk 00:00:27]} {[%emt 00:00:01]} Ke5 {[%clk
00:00:21]} {[%emt 00:00:02]} 47. Kc3 {[%clk 00:00:18]} {[%emt 00:00:14]} Bf1
{[%clk 00:00:08]} {[%emt 00:00:18]} 48. Re7+ {[%clk 00:00:12]} {[%emt
00:00:10]} Kf4 {[%clk 00:00:11]} {[%emt 00:00:03]} 49. Rf7+ {[%clk 00:00:16]}
{[%emt 00:00:01]} 1-0

[Event "Open NK Rapid 2025"]
[Site "Helmond, Netherlands"]
[Date "2025.05.03"]
[Round "4.18"]
[White "Leenen, Boyd"]
[Black "Uddin, Ahnaf Tajwar"]
[Result "0-1"]
[TimeControl "15+5"]
[WhiteFideId "1083937"]
[BlackFideId "1050842"]
[WhiteElo "1931"]
[BlackElo "2081"]

1. d4 {[%clk 00:15:09]} e6 {[%clk 00:15:05]} {[%emt 00:00:06]} 2. e4 {[%clk
00:15:09]} {[%emt 00:00:04]} b6 {[%clk 00:15:09]} {[%emt 00:00:02]} 3. Nf3
{[%clk 00:14:56]} {[%emt 00:00:18]} Bb7 {[%clk 00:15:13]} 4. Bd3 {[%clk
00:14:51]} {[%emt 00:00:09]} d5 {[%clk 00:14:58]} {[%emt 00:00:20]} 5. e5
{[%clk 00:14:49]} {[%emt 00:00:08]} c5 {[%clk 00:14:51]} {[%emt 00:00:12]} 6.
c3 {[%clk 00:14:52]} {[%emt 00:00:01]} h6 {[%clk 00:14:53]} {[%emt 00:00:04]} 7.
O-O {[%clk 00:14:54]} {[%emt 00:00:03]} Nc6 {[%clk 00:14:53]} {[%emt 00:00:05]}
8. a3 {[%clk 00:14:55]} {[%emt 00:00:04]} c4 {[%clk 00:14:57]} {[%emt
00:00:01]} 9. Bc2 {[%clk 00:14:53]} {[%emt 00:00:07]} b5 {[%clk 00:15:01]}
{[%emt 00:00:01]} 10. Be3 {[%clk 00:14:24]} {[%emt 00:00:36]} Nge7 {[%clk
00:15:03]} 11. Nbd2 {[%clk 00:14:19]} {[%emt 00:00:10]} Nc8 {[%clk 00:15:07]}
{[%emt 00:00:02]} 12. Ne1 {[%clk 00:14:16]} {[%emt 00:00:07]} g6 {[%clk
00:14:51]} {[%emt 00:00:21]} 13. f4 {[%clk 00:14:20]} {[%emt 00:00:02]} h5
{[%clk 00:14:54]} {[%emt 00:00:02]} 14. Nef3 {[%clk 00:14:11]} {[%emt
00:00:14]} Be7 {[%clk 00:14:57]} {[%emt 00:00:02]} 15. Qe2 {[%clk 00:14:04]}
{[%emt 00:00:12]} a5 {[%clk 00:15:01]} {[%emt 00:00:01]} 16. h3 {[%clk
00:14:05]} {[%emt 00:00:04]} Nb6 {[%clk 00:14:58]} {[%emt 00:00:08]} 17. g4
{[%clk 00:13:57]} {[%emt 00:00:13]} hxg4 {[%clk 00:15:02]} {[%emt 00:00:01]} 18.
hxg4 {[%clk 00:14:01]} b4 {[%clk 00:15:06]} {[%emt 00:00:01]} 19. Kg2 {[%clk
00:13:57]} {[%emt 00:00:09]} b3 {[%clk 00:14:57]} {[%emt 00:00:14]} 20. Bd1
{[%clk 00:13:40]} {[%emt 00:00:22]} Na4 {[%clk 00:14:55]} {[%emt 00:00:08]} 21.
Nb1 {[%clk 00:13:43]} {[%emt 00:00:01]} Na7 {[%clk 00:14:54]} {[%emt 00:00:05]}
22. Qd2 {[%clk 00:13:25]} {[%emt 00:00:20]} Nb5 {[%clk 00:14:53]} {[%emt
00:00:10]} 23. Be2 {[%clk 00:13:26]} {[%emt 00:00:03]} Bc6 {[%clk 00:14:51]}
{[%emt 00:00:08]} 24. Qc1 {[%clk 00:13:27]} {[%emt 00:00:03]} Rb8 {[%clk
00:14:43]} {[%emt 00:00:14]} 25. Nbd2 {[%clk 00:13:30]} {[%emt 00:00:02]} Nbxc3
{[%clk 00:14:32]} {[%emt 00:00:15]} 26. Bd1 {[%clk 00:12:38]} {[%emt 00:00:57]}
Nxd1 {[%clk 00:14:22]} {[%emt 00:00:15]} 27. Rxd1 {[%clk 00:12:41]} {[%emt
00:00:03]} c3 {[%clk 00:14:06]} {[%emt 00:00:22]} 28. Nf1 {[%clk 00:11:55]}
{[%emt 00:00:50]} Qd7 {[%clk 00:13:50]} {[%emt 00:00:21]} 29. Kg3 {[%clk
00:10:31]} {[%emt 00:01:28]} cxb2 {[%clk 00:13:46]} {[%emt 00:00:09]} 30. Qb1
{[%clk 00:10:36]} bxa1=Q {[%clk 00:13:40]} {[%emt 00:00:11]} 31. Qxa1 {[%clk
00:10:39]} {[%emt 00:00:01]} b2 {[%clk 00:13:32]} {[%emt 00:00:14]} 32. Qa2
{[%clk 00:10:41]} {[%emt 00:00:03]} Nc3 {[%clk 00:13:31]} {[%emt 00:00:06]} 0-1